bitfinex/quotes_ETHUSD_20250430
["timestamp","ask_amount","ask_price","bid_price","bid_amount"]
[1746023119348,9.07922179,1767.4,1766.2,0.91515]
[1746023119528,8.6587756,1767.2,1766.2,0.91515]
[1746023119865,8.6587756,1767.2,1766.3,6.62]
[1746023119866,9.85122944,1767.0,1766.3,6.62]
[1746023120066,11.51152944,1767.0,1766.2,0.91515]
[1746023120261,6.85122944,1766.7,1766.1,2.5325]
[1746023121027,12.51168461,1766.7,1766.1,2.5325]
[1746023121327,6.85122944,1766.7,1766.0,18.706]
[1746023121527,12.51160958,1766.7,1766.0,18.706]
[1746023121759,3.0,1766.6,1766.1,6.621]
[1746023121957,8.66063752,1766.6,1766.1,6.621]
[1746023122541,8.6607076,1766.6,1766.0,6.621]
[1746023122871,5.66175772,1766.3,1765.5,18.719]
[1746023123026,6.85122944,1766.4,1765.6,8.4929]
[1746023123229,5.66231501,1766.1,1765.6,1.8719]
[1746023123563,8.66159084,1766.3,1765.6,6.621]
[1746023123721,6.85122944,1766.1,1765.6,6.621]
[1746023123921,12.513463,1766.1,1765.6,6.621]
[1746023124152,12.51352521,1766.1,1765.6,6.621]
[1746023124571,3.0,1766.0,1765.6,6.621]
[1746023124970,6.85122944,1766.1,1765.6,6.621]
[1746023125735,3.0,1766.0,1765.6,6.621]
[1746023125962,4.5801,1766.0,1765.6,6.621]
[1746023126280,1.5801,1766.0,1765.5,6.388]
[1746023126578,3.42472903,1766.3,1765.5,7.0268]
[1746023127742,3.42472903,1766.3,1764.9,0.05663958]
[1746023127982,14.74835268,1766.3,1765.0,6.389]
[1746023128159,14.74829379,1766.3,1765.0,6.389]
[1746023128372,5.66225134,1766.1,1765.1,6.389]
[1746023128553,12.51348078,1766.1,1765.1,6.389]
[1746023128749,12.51343907,1766.1,1765.2,0.6389]
[1746023128940,12.51359666,1766.1,1765.3,6.389]
[1746023129144,3.0,1766.0,1765.3,6.389]
[1746023129373,3.0,1766.0,1764.8,18.719]
[1746023129686,6.85122944,1765.5,1764.5,18.724]
[1746023129890,5.66349524,1765.7,1764.6,6.389]
[1746023130197,3.0,1765.4,1764.5,18.724]
[1746023130740,3.57330176,1765.4,1764.5,18.724]
[1746023131448,6.85122944,1765.3,1764.5,18.724]
[1746023131655,3.0,1765.5,1764.6,0.05666607]
[1746023131853,6.85122944,1765.6,1764.6,1.87806661]
[1746023132181,1.5725,1765.7,1764.6,8.32472842]
[1746023132353,3.0,1765.8,1764.6,8.32472842]
[1746023132354,0.56071877,1765.8,1764.6,8.32472842]
[1746023132693,7.27193424,1765.9,1764.7,0.83247284]
[1746023133405,7.86040454,1765.9,1764.7,0.83247284]
[1746023134305,7.86040454,1765.9,1764.8,0.05664747]
[1746023134465,7.86040454,1765.9,1764.7,0.83247284]
[1746023135862,3.0,1765.8,1764.7,0.83247284]
[1746023136070,3.0,1765.8,1764.8,6.391]
[1746023136398,1.0091751,1765.9,1764.8,6.44765008]
[1746023136697,0.4207048,1765.9,1764.8,6.44765008]
[1746023136896,2.14181623,1766.0,1764.8,6.44765008]
[1746023137065,2.14181623,1766.0,1764.9,0.64476501]
[1746023137260,7.40122944,1765.9,1764.9,0.64476501]
[1746023137466,6.85122944,1765.5,1764.6,6.391]
[1746023138605,3.0,1765.7,1764.6,6.391]
[1746023138965,3.0,1765.7,1764.7,6.391]
[1746023140103,3.0,1765.7,1764.3,0.05665052]
[1746023140322,3.0,1765.7,1764.4,6.392]
[1746023140526,3.0,1765.7,1764.5,6.392]
[1746023140527,14.63669744,1765.7,1764.5,6.392]
[1746023141039,8.973,1765.7,1764.5,6.392]
[1746023141181,0.55,1765.6,1764.6,6.392]
[1746023141385,4.6058,1765.4,1764.6,6.392]
[1746023141581,3.0,1765.6,1764.7,0.6392]
[1746023141817,3.0,1765.4,1764.6,6.392]
[1746023141989,3.0,1765.5,1764.3,0.30566505]
[1746023142192,8.66455275,1765.4,1764.1,18.73]
[1746023142389,8.66455275,1765.4,1764.4,6.392]
[1746023142624,3.0,1765.2,1764.4,6.392]
[1746023143182,3.0,1765.2,1763.6,0.2]
[1746023143183,4.6623,1765.2,1763.6,0.2]
[1746023143387,4.6623,1765.2,1762.3,16.84372315]
[1746023143388,6.85122944,1764.6,1763.5,0.0566629]
[1746023143583,3.0,1764.7,1763.5,0.0566629]
[1746023143787,3.0,1764.7,1763.5,7.07822235]
[1746023144023,3.0,1764.7,1763.5,7.13490551]
[1746023144193,4.6623,1765.0,1763.6,6.162]
[1746023144395,3.0,1765.0,1763.8,3.0]
[1746023144608,3.0,1765.0,1763.9,0.35667077]
[1746023144934,14.82710398,1765.2,1764.0,6.162]
[1746023145093,9.162,1765.2,1764.0,6.21867163]
[1746023145419,9.162,1765.2,1764.1,6.162]
[1746023145420,15.51678541,1765.1,1764.1,6.162]
[1746023145610,9.85122944,1765.1,1764.2,0.6162]
[1746023145816,15.51664998,1765.1,1764.2,0.6162]
[1746023146127,16.50564641,1765.1,1764.2,0.6162]
[1746023146420,10.84022587,1765.1,1764.2,0.6162]
[1746023146623,9.85122944,1765.1,1764.2,0.6162]
[1746023147120,0.41704993,1765.2,1764.3,0.05667293]
[1746023147426,1.5905,1765.3,1764.2,0.6162]
[1746023147734,2.01440636,1765.3,1764.2,0.6162]
[1746023148138,0.42390636,1765.3,1764.2,0.6162]
[1746023148304,10.7544,1765.5,1764.2,0.6162]
[1746023148798,1.5924,1765.8,1764.4,0.55]
[1746023149015,1.5924,1765.8,1764.5,0.05664777]
[1746023149218,1.5924,1765.8,1764.6,6.163]
[1746023149415,1.5924,1765.8,1764.4,3.55]
[1746023149416,2.02467456,1765.8,1764.7,19.3533]
[1746023149599,7.6879473,1765.8,1764.7,25.5163]
[1746023149797,2.02467456,1765.8,1764.7,25.5163]
[1746023150237,3.0,1765.5,1764.7,19.3533]
[1746023150411,3.0,1765.5,1764.8,8.09833]
[1746023151037,3.0,1765.5,1764.8,8.15498661]
[1746023151241,6.85122944,1765.6,1764.8,8.15498654]
[1746023151411,6.85122944,1765.6,1764.8,8.09833]
[1746023151612,6.85122944,1765.6,1764.9,0.809833]
[1746023152001,3.0,1765.5,1764.8,1.93533]
[1746023152202,3.0,1765.5,1764.8,6.163]
[1746023152849,6.85122944,1765.3,1764.8,6.163]
[1746023153045,3.0,1765.2,1764.8,6.163]
[1746023153418,3.0,1765.2,1764.7,19.3533]
[1746023153631,3.0,1765.2,1764.8,6.163]
[1746023153834,6.85122944,1765.0,1764.7,18.737]
[1746023154202,9.85122944,1765.2,1764.6,6.163]
[1746023154414,3.0,1765.2,1764.6,6.163]
[1746023155112,1.509,1765.6,1764.6,6.163]
[1746023155113,8.36022944,1765.6,1764.6,6.163]
[1746023155436,3.0,1765.5,1764.7,0.6163]
[1746023156648,6.85122944,1765.6,1764.7,0.6163]
[1746023161533,3.0,1765.5,1764.8,3.01340819]
[1746023162649,3.0,1765.5,1764.8,3.31474901]
[1746023162849,6.85122944,1765.6,1764.8,3.31474901]
[1746023163451,3.0,1765.5,1764.9,6.162]
[1746023163647,6.85122944,1765.3,1764.8,9.17540819]
[1746023164837,6.85122944,1765.6,1764.8,9.17540819]
[1746023165519,7.84022587,1765.6,1764.8,9.17540819]
[1746023165715,6.85122944,1765.3,1764.8,9.17540819]
[1746023165919,3.0,1765.2,1764.8,6.162]
[1746023166143,6.85122944,1765.3,1764.1,3.0566628]
[1746023166342,3.0,1765.4,1764.2,6.46766628]
[1746023166548,3.0,1765.4,1764.3,0.05665443]
[1746023166755,3.0,1765.4,1764.2,6.52432071]
[1746023167414,6.85122944,1765.2,1764.2,6.46766628]
[1746023167644,3.0,1765.1,1764.2,0.30566628]
[1746023167815,3.0,1765.1,1764.3,6.162]
[1746023168819,3.43271441,1765.1,1764.0,18.736]
[1746023169327,6.85122944,1764.9,1764.3,3.01476985]
[1746023169869,0.43271441,1765.1,1764.3,3.01476985]
[1746023170025,0.43271441,1765.1,1764.3,3.07143657]
[1746023170248,6.85122944,1765.8,1764.4,3.30714366]
[1746023170451,0.58202509,1766.0,1764.5,0.05664682]
[1746023170650,0.58202509,1766.0,1764.6,6.163]
[1746023170881,9.68093877,1766.0,1764.7,0.05664391]
[1746023171091,6.85122944,1765.8,1764.7,0.7204446]
[1746023171244,6.85122944,1765.8,1764.7,0.66380069]
[1746023171661,6.85122944,1765.8,1764.8,0.05664852]
[1746023172039,6.85122944,1765.8,1764.7,0.72044361]
[1746023172466,6.85122944,1765.8,1764.8,0.05664852]
[1746023172675,6.85122944,1765.8,1764.7,0.66380069]
[1746023173052,6.85122944,1765.5,1764.7,0.66380069]
[1746023173450,6.85122944,1765.5,1764.8,0.05665342]
[1746023173451,0.42868091,1765.5,1764.8,0.05665342]
[1746023173684,6.85122944,1765.8,1764.8,0.05664595]
[1746023173856,6.85122944,1765.8,1764.7,0.66380069]
[1746023174045,6.85122944,1765.8,1764.8,0.05664605]
[1746023174369,6.85122944,1765.8,1764.7,0.72044674]
[1746023174540,3.0,1765.9,1764.7,0.72044674]
[1746023175084,3.98899643,1765.9,1764.7,0.72044674]
[1746023175386,7.84022587,1765.8,1764.8,5.943]
[1746023175545,7.84022587,1765.8,1764.9,0.5943]
[1746023175741,7.84022587,1765.8,1764.9,3.60906985]
[1746023176144,7.84022587,1765.8,1764.9,3.01476985]
[1746023176740,7.84022587,1765.8,1765.0,5.943]
[1746023177182,6.85122944,1765.8,1765.0,5.943]
[1746023179354,0.42169802,1765.9,1765.0,5.943]
[1746023179559,0.005,1766.0,1765.1,0.65094169]
[1746023179891,0.005,1766.0,1765.1,18.15094169]
[1746023180097,0.005,1766.0,1765.2,0.55]
[1746023180252,6.85122944,1767.0,1765.3,0.05661745]
[1746023180591,6.85122944,1767.0,1765.1,3.7943]
[1746023180592,6.85122944,1766.7,1765.1,3.5943]
[1746023180790,7.84022587,1766.7,1765.3,3.55]
[1746023180955,7.84022587,1766.7,1765.4,0.05661638]
[1746023181153,6.85122944,1766.7,1765.6,3.0]
[1746023181390,8.55486319,1766.7,1765.7,5.942]
[1746023181557,7.84022587,1766.7,1765.7,6.5362]
[1746023181758,6.85122944,1766.7,1765.7,6.5362]
[1746023183387,3.0,1766.9,1765.8,18.73]
[1746023184152,6.85122944,1767.0,1765.8,18.73]
[1746023185493,6.85122944,1767.0,1765.8,33.23]
[1746023185667,6.85122944,1766.7,1765.9,5.941]
[1746023185987,6.85122944,1766.1,1765.8,5.941]
[1746023186187,3.0,1766.0,1765.4,24.668]
[1746023186495,3.55,1765.9,1765.4,24.668]
[1746023186670,6.85122944,1765.8,1765.4,24.668]
[1746023188092,0.41615819,1765.9,1765.4,27.53334946]
[1746023188282,3.0,1766.4,1765.4,27.53334946]
[1746023188591,6.85122944,1766.2,1765.4,27.53334946]
[1746023188762,3.55,1766.1,1765.5,5.941]
[1746023189209,3.0,1766.1,1765.5,5.941]
[1746023191330,6.85122944,1765.9,1765.6,5.941]
[1746023191633,6.85122944,1765.9,1765.5,5.941]
[1746023191634,3.0,1765.8,1765.5,5.941]
[1746023192869,3.0,1765.8,1765.4,24.668]
[1746023193049,8.66318745,1765.8,1765.4,24.668]
[1746023193230,8.66318745,1765.8,1765.4,18.727]
[1746023193231,3.0,1765.5,1765.4,18.727]
[1746023193554,3.0,1765.5,1765.3,5.941]
[1746023193762,3.0,1765.5,1765.2,5.941]
[1746023194060,6.85122944,1765.6,1765.2,5.941]
[1746023194259,7.27768941,1765.6,1765.2,5.941]
[1746023196226,5.66453425,1765.4,1764.8,18.729]
[1746023196425,3.0,1765.2,1764.9,5.942]
[1746023196661,6.85122944,1765.0,1764.9,5.942]
[1746023196965,9.85122944,1765.0,1764.6,5.942]
[1746023197121,9.85122944,1765.0,1764.4,5.942]
[1746023197325,9.85122944,1765.0,1764.4,6.5362]
[1746023198069,6.85122944,1765.3,1764.4,6.5362]
[1746023198275,3.0,1765.2,1764.4,6.5362]
[1746023198863,6.85122944,1765.0,1764.1,18.731]
[1746023199039,6.85122944,1765.0,1764.5,5.942]
[1746023199847,1.5351,1765.1,1764.5,5.942]
[1746023200163,11.96322944,1765.3,1764.5,5.942]
[1746023200385,17.62809866,1765.3,1764.5,5.942]
[1746023200670,0.55,1765.2,1764.5,5.942]
[1746023200850,3.0,1765.4,1764.6,0.5942]
[1746023201171,3.0,1765.1,1764.6,0.5942]
[1746023201467,3.0,1765.1,1764.5,5.942]
[1746023201769,10.32732002,1765.1,1764.5,5.943]
[1746023202066,3.0,1764.8,1764.6,5.943]
[1746023202230,3.0,1764.8,1764.0,6.01024834]
[1746023202231,2.2119,1764.7,1764.0,6.01024834]
[1746023202431,6.85122944,1764.5,1764.1,5.943]
[1746023202857,6.85122944,1764.5,1763.7,18.733]
[1746023202858,3.0,1764.4,1763.7,18.733]
[1746023203171,3.0,1764.4,1763.8,5.943]
[1746023204371,3.0,1764.7,1763.8,5.943]
[1746023204545,3.0,1764.9,1763.8,5.99968948]
[1746023204745,8.51062944,1765.0,1763.8,5.943]
[1746023204947,0.41603724,1765.1,1763.9,0.5943]
[1746023205249,2.23725087,1765.3,1764.0,0.05666685]
[1746023205774,12.78922944,1765.4,1764.0,0.05666685]
[1746023205973,12.78922944,1765.4,1764.0,0.42176354]
[1746023207473,3.0,1765.3,1764.0,0.42176354]
[1746023207771,3.0,1765.3,1764.1,2.98450957]
[1746023207992,3.0,1765.3,1764.2,0.05666623]
[1746023208197,3.0,1765.3,1764.3,5.939]
[1746023208406,7.27859612,1765.4,1764.4,0.5939]
[1746023208700,0.42736668,1765.4,1764.5,5.939]
[1746023208878,3.0,1765.6,1764.5,5.939]
[1746023209394,0.42784505,1765.6,1764.5,5.939]
[1746023209581,3.0,1765.6,1764.6,18.79465627]
[1746023209894,3.0,1765.9,1764.7,0.0566485]
[1746023210083,3.0,1765.9,1764.7,1.87946563]
[1746023210790,8.49252944,1766.0,1764.7,1.93611421]
[1746023211256,3.0,1765.9,1764.7,1.87946563]
[1746023211752,3.0,1765.9,1764.8,5.939]
[1746023211957,3.71463732,1765.9,1764.9,0.5939]
[1746023212187,3.71463732,1765.9,1765.0,5.939]
[1746023212403,4.1415881,1765.9,1765.0,5.939]
[1746023212788,0.55,1765.8,1765.1,5.939]
[1746023213294,4.1415881,1765.9,1765.1,5.939]
[1746023213453,3.42695078,1765.9,1765.1,5.939]
[1746023213662,3.42695078,1765.9,1765.2,0.5939]
[1746023214161,0.42695078,1765.9,1765.2,0.5939]
[1746023214394,14.39502944,1766.3,1765.2,0.5939]
[1746023214557,3.0,1766.2,1765.2,0.5939]
[1746023216000,8.45602944,1766.3,1765.2,0.5939]
[1746023216180,0.56345761,1766.4,1765.3,0.05663095]
[1746023216384,3.0,1766.4,1765.2,0.5939]
[1746023216578,12.78922944,1766.5,1765.2,0.5939]
[1746023217205,3.0,1766.4,1765.2,0.5939]
[1746023217526,3.58501923,1766.4,1765.2,0.5939]
[1746023217731,3.58501923,1766.4,1765.3,5.938]
[1746023217929,6.85122944,1766.2,1765.4,5.938]
[1746023218129,6.85122944,1766.2,1765.5,5.938]
[1746023219382,0.42734666,1766.4,1765.5,5.938]
[1746023219582,1.6364,1766.7,1765.6,18.78963389]
[1746023219808,3.0,1766.8,1765.7,1.87896339]
[1746023220083,6.09518684,1766.8,1765.8,5.938]
[1746023220309,6.85122944,1766.6,1765.7,1.87896339]
[1746023220512,4.6478,1766.5,1765.8,5.937]
[1746023220824,4.6478,1766.5,1765.8,6.71859634]
[1746023220986,3.0,1766.5,1765.8,6.71859634]
[1746023221633,3.0,1766.5,1765.8,0.78159634]
[1746023221835,3.0,1766.5,1765.9,5.937]
[1746023222047,0.43513673,1766.8,1765.9,5.937]
[1746023222500,0.55,1766.8,1765.9,5.937]
[1746023222684,3.55,1766.8,1765.9,5.937]
[1746023222880,3.0,1766.5,1765.7,1.87896339]
[1746023223116,2.0714,1766.4,1765.8,5.937]
[1746023223295,2.0714,1766.4,1765.7,1.87896339]
[1746023223590,6.85122944,1766.3,1765.6,18.733]
[1746023223803,3.0,1766.2,1765.7,5.936]
[1746023224530,3.0,1766.4,1765.7,5.936]
[1746023224738,3.55,1766.7,1765.7,5.936]
[1746023225039,3.0,1766.4,1765.8,6.5296]
[1746023225689,3.0,1766.4,1765.8,0.5936]
[1746023225887,4.6549,1766.4,1765.8,5.936]
[1746023226195,4.6549,1766.4,1765.6,18.733]
[1746023226196,6.85122944,1766.2,1765.7,5.936]
[1746023228195,6.85122944,1765.9,1764.9,4.86846991]
[1746023228396,6.85122944,1765.9,1765.0,5.936]
[1746023228397,3.0,1765.8,1765.0,5.936]
[1746023228630,6.85122944,1765.6,1765.1,5.936]
[1746023228927,3.0,1765.5,1765.1,5.936]
[1746023229096,3.0,1765.5,1765.1,6.5296]
[1746023229493,3.0,1765.5,1765.1,5.936]
[1746023231532,0.55,1765.5,1765.1,5.936]
[1746023231890,1.5992,1765.6,1765.1,5.936]
[1746023232726,3.41940004,1765.6,1765.1,5.936]
[1746023234639,0.41940004,1765.6,1765.1,5.936]
[1746023234924,6.85122944,1766.0,1765.2,0.5936]
[1746023235130,3.0,1765.9,1765.2,0.5936]
[1746023235910,6.85122944,1766.3,1765.2,0.5936]
[1746023236320,3.0,1766.2,1765.2,0.5936]
[1746023236520,6.85122944,1766.3,1765.2,0.5936]
[1746023236739,0.55,1766.2,1765.2,0.5936]
[1746023236896,3.55,1766.2,1765.2,0.5936]
[1746023237595,3.0,1766.2,1765.2,0.5936]
[1746023237795,0.55,1766.1,1765.2,0.5936]
[1746023238628,3.42378029,1766.2,1765.2,0.5936]
[1746023238853,0.42378029,1766.2,1765.2,0.5936]
[1746023239023,6.85122944,1766.3,1765.2,0.5936]
[1746023239359,6.85122944,1766.3,1765.2,0.6502289]
[1746023239527,3.0,1766.2,1765.2,0.5936]
[1746023239717,3.0,1766.2,1765.3,5.926]
[1746023240055,3.0,1765.9,1765.4,5.926]
[1746023240240,10.26211862,1766.2,1765.4,5.926]
[1746023240241,1.6002,1766.2,1765.4,5.926]
[1746023240955,9.85122944,1766.3,1765.4,5.926]
[1746023241548,6.85122944,1766.3,1765.4,5.926]
[1746023241770,3.0,1766.2,1765.4,5.926]
[1746023242053,6.85122944,1766.3,1765.5,0.5926]
[1746023242252,3.0,1766.2,1765.5,0.5926]
[1746023244834,6.85122944,1766.3,1765.5,0.5926]
[1746023245757,3.0,1766.2,1765.6,5.925]
[1746023245961,3.0,1765.9,1765.6,5.925]
[1746023246764,0.97816628,1766.4,1765.6,5.925]
[1746023246765,0.42816628,1766.4,1765.6,5.925]
[1746023247058,4.59,1766.7,1765.6,5.925]
[1746023247267,3.0,1766.4,1765.6,5.925]
[1746023247464,3.0,1766.4,1765.7,0.5925]
[1746023247663,6.87262044,1766.4,1765.7,0.5925]
[1746023247864,3.0,1766.3,1765.7,0.5925]
[1746023249076,3.0,1766.3,1765.7,0.64912667]
[1746023249312,3.0,1766.3,1765.7,0.5925]
[1746023251742,0.42568947,1766.4,1765.8,0.05662409]
[1746023252049,3.0,1766.3,1765.7,0.5925]
[1746023254151,0.42311183,1766.4,1765.7,0.64912434]
[1746023254352,3.0,1766.5,1765.8,3.00195841]
[1746023254657,3.0,1766.5,1765.9,0.30019584]
[1746023254884,3.43204901,1766.5,1765.9,0.30019584]
[1746023256051,0.5,1766.6,1766.0,0.05661695]
[1746023256362,0.5,1766.6,1766.1,5.925]
[1746023256551,0.5,1766.6,1766.2,6.5165]
[1746023257151,0.9249129,1766.6,1766.3,5.924]
[1746023258209,0.9249129,1766.6,1766.0,3.00195841]
[1746023258510,0.9249129,1766.6,1766.1,5.924]
[1746023259321,7.79753334,1766.6,1766.1,5.924]
[1746023259512,7.79753334,1766.6,1766.0,3.00195841]
[1746023259796,7.79753334,1766.6,1766.0,3.33217384]
[1746023260009,6.87262044,1766.4,1766.0,8.92595841]
[1746023261521,6.87262044,1766.4,1766.2,3.00195841]
[1746023261725,3.0,1766.3,1766.2,3.00195841]
[1746023262018,10.79753334,1766.6,1766.2,3.00195841]
[1746023262218,10.79753334,1766.6,1766.2,3.30215425]
[1746023262424,10.79753334,1766.6,1766.2,3.00195841]
[1746023262802,0.9249129,1766.6,1766.2,3.00195841]
[1746023263792,0.5,1766.6,1766.0,5.924]
[1746023264009,1.6117,1767.2,1766.1,0.05660876]
[1746023264210,4.6117,1767.2,1766.0,5.98060201]
[1746023264527,3.0,1767.0,1766.1,0.5980602]
[1746023264903,0.43474313,1767.1,1766.2,0.05660211]
[1746023265107,3.0,1767.2,1766.2,0.05660211]
[1746023266095,3.0,1767.2,1766.3,5.907]
[1746023266290,6.87262044,1766.8,1766.3,5.907]
[1746023267528,3.0,1766.7,1766.3,5.907]
[1746023267709,6.87262044,1766.6,1766.1,5.907]
[1746023268107,4.6385,1766.7,1766.1,5.907]
[1746023268302,3.0,1766.7,1766.2,0.5907]
[1746023268509,3.41844909,1766.7,1766.2,0.5907]
[1746023269013,0.41844909,1766.7,1766.2,0.5907]
[1746023269325,6.87262044,1766.8,1766.2,0.5907]
[1746023270825,5.0973,1767.1,1766.2,0.5907]
[1746023271028,3.0,1766.8,1766.2,0.5907]
[1746023271196,3.0,1766.6,1766.2,0.5907]
[1746023271397,6.87262044,1766.5,1765.8,18.723]
[1746023271604,6.87262044,1766.3,1765.9,5.906]
[1746023273108,3.0,1766.2,1765.9,5.906]
[1746023273309,6.87262044,1766.1,1765.8,18.723]
[1746023273635,6.87262044,1766.1,1765.8,21.24515]
[1746023274212,3.0,1766.2,1765.8,21.24515]
[1746023274906,6.87262044,1766.1,1765.8,24.63]
[1746023275739,7.29458637,1766.3,1765.8,24.63]
[1746023275909,3.0,1766.2,1765.8,24.63]
[1746023277334,7.29458637,1766.3,1765.8,24.63]
[1746023277335,0.42196593,1766.3,1765.8,24.63]
[1746023277524,4.6376,1766.4,1765.8,24.63]
[1746023277724,4.6376,1766.4,1765.9,2.463]
[1746023278032,5.06994702,1766.4,1765.9,2.463]
[1746023278238,0.43234702,1766.4,1765.9,2.463]
[1746023278530,3.0,1766.6,1765.9,2.463]
[1746023279838,6.87262044,1766.3,1765.8,18.723]
[1746023280002,6.87262044,1766.3,1765.9,5.907]
[1746023280206,8.44132044,1766.3,1765.8,24.63]
[1746023281810,8.44132044,1766.3,1765.8,18.723]
[1746023281811,6.87262044,1766.1,1765.8,18.723]
[1746023282015,3.0,1765.8,1765.3,5.907]
[1746023282216,6.87262044,1765.7,1765.3,5.907]
[1746023282617,3.0,1765.8,1765.3,6.9854846]
[1746023282824,3.0,1765.9,1765.3,6.9854846]
[1746023283136,3.4327905,1765.9,1765.4,5.907]
[1746023283526,0.4327905,1765.9,1765.4,5.907]
[1746023283728,3.0,1766.1,1765.4,5.907]
[1746023283965,3.0,1766.1,1765.5,0.5907]
[1746023284170,3.0,1766.3,1765.5,0.5907]
[1746023284371,0.55,1766.2,1765.5,0.5907]
[1746023284568,3.0,1766.1,1765.6,5.908]
[1746023285436,3.42555605,1766.1,1765.6,5.908]
[1746023285962,3.0,1765.9,1765.7,5.908]
[1746023286553,7.42262044,1765.8,1765.4,5.908]
[1746023286756,6.87262044,1765.8,1765.4,5.908]
[1746023287055,6.87262044,1765.8,1765.7,3.00460827]
[1746023287668,7.29252268,1765.8,1765.7,3.00460827]
[1746023288431,0.41990224,1765.8,1765.7,3.00460827]
[1746023288634,8.52802044,1766.2,1765.7,3.00460827]
[1746023288834,3.0,1766.1,1765.7,3.00460827]
[1746023289034,3.0,1766.1,1765.7,3.3050691]
[1746023289875,6.87262044,1766.2,1765.7,3.3050691]
[1746023290077,6.87262044,1766.2,1765.7,0.30046083]
[1746023290236,6.87262044,1766.2,1765.4,10.26706756]
[1746023290673,6.87262044,1766.2,1765.4,4.35906756]
[1746023290992,7.29805723,1766.2,1765.5,5.908]
[1746023291595,6.87262044,1766.0,1765.4,4.35906756]
[1746023291750,6.87262044,1766.0,1765.6,5.908]
[1746023291954,6.87262044,1766.0,1765.5,5.908]
[1746023292153,6.87262044,1766.0,1765.4,9.67626756]
[1746023292154,6.87262044,1765.8,1765.4,9.67626756]
[1746023292385,6.87262044,1765.8,1765.4,3.76826756]
[1746023292575,3.0,1765.5,1765.0,5.908]
[1746023292900,6.87262044,1765.3,1765.2,4.87784604]
[1746023293669,6.87262044,1765.5,1765.2,4.87784604]
[1746023294124,6.87262044,1765.8,1765.2,5.36563064]
[1746023296684,6.87262044,1765.8,1765.3,5.888]
[1746023297080,6.87262044,1765.6,1765.2,4.87784604]
[1746023297266,6.87262044,1765.4,1765.2,10.76584604]
[1746023297575,6.87262044,1765.4,1765.2,4.87784604]
[1746023298388,7.30451681,1765.4,1765.2,4.87784604]
[1746023298559,3.55,1765.3,1765.2,4.87784604]
[1746023298768,5.0993,1765.3,1765.2,4.67542724]
[1746023299793,7.30451681,1765.4,1765.2,5.14296996]
[1746023299981,0.43189637,1765.4,1765.2,5.14296996]
[1746023300182,3.0,1765.5,1765.2,5.14296996]
[1746023300371,8.39572044,1765.6,1765.2,4.67542724]
[1746023300567,0.55,1765.5,1765.2,4.67542724]
[1746023300770,6.87262044,1765.4,1765.2,4.67542724]
[1746023301069,7.2972106,1765.4,1765.2,4.67542724]
[1746023301479,0.42459016,1765.4,1765.2,4.67542724]
[1746023301661,6.87262044,1765.6,1765.2,5.14296996]
[1746023303290,6.87262044,1765.6,1765.2,4.67542724]
[1746023304000,7.30764436,1765.6,1765.2,4.67542724]
[1746023304904,7.30764436,1765.6,1765.1,5.889]
[1746023306226,0.43502392,1765.6,1765.1,5.889]
[1746023306525,6.87262044,1765.6,1765.1,5.889]
[1746023306679,6.87262044,1765.6,1765.2,0.5889]
[1746023308326,6.87262044,1765.8,1765.2,0.5889]
[1746023308619,6.87262044,1765.6,1765.2,0.5889]
[1746023310512,1.5337,1765.5,1765.1,5.889]
[1746023310711,6.87262044,1765.6,1765.1,5.889]
[1746023313124,6.87262044,1765.6,1764.9,10.00349417]
[1746023313308,6.87262044,1765.6,1765.2,5.889]
[1746023313514,8.50812044,1765.4,1765.0,5.89]
[1746023314316,6.87262044,1765.4,1765.0,7.47934942]
[1746023314614,3.0,1765.5,1765.0,7.47934942]
[1746023314944,8.42212044,1765.6,1765.0,7.47934942]
[1746023315630,6.87262044,1765.6,1765.0,7.47934942]
[1746023315830,6.87262044,1765.6,1765.0,5.89]
[1746023317419,6.87262044,1765.6,1765.1,5.89]
[1746023317821,7.29975639,1765.8,1765.1,8.896701]
[1746023318050,0.42713595,1765.8,1765.2,3.8896701]
[1746023318255,1.5673,1765.9,1765.2,3.8896701]
[1746023319550,6.87262044,1765.8,1765.4,5.889]
[1746023320063,6.87262044,1765.8,1765.2,3.8896701]
[1746023320268,6.87262044,1765.8,1765.3,5.889]
[1746023320452,6.87262044,1765.8,1765.4,8.895701]
[1746023320651,7.30133785,1765.8,1765.4,8.895701]
[1746023320855,7.30133785,1765.8,1765.4,3.006701]
[1746023321068,6.87262044,1765.6,1765.4,3.006701]
[1746023321377,6.87262044,1764.9,1764.7,11.89250282]
[1746023322143,11.63790149,1765.3,1764.7,11.89250282]
[1746023322144,6.87262044,1765.1,1764.7,11.89250282]
[1746023322350,6.87262044,1765.1,1764.7,13.0817531]
[1746023322665,2.1349,1765.3,1764.7,13.0827531]
[1746023322666,9.00752044,1765.3,1764.7,13.0827531]
[1746023322866,8.893051,1765.3,1764.7,13.0827531]
[1746023323465,7.308151,1765.3,1764.7,13.0827531]
[1746023323670,0.43553056,1765.3,1764.7,13.0827531]
[1746023323965,1.5934,1765.6,1764.8,1.30827531]
[1746023324169,6.87262044,1765.7,1764.8,1.30827531]
[1746023324329,6.87262044,1765.7,1764.7,5.89]
[1746023325058,0.42696047,1765.7,1764.8,0.05664667]
[1746023325253,6.87262044,1765.9,1764.8,0.05664667]
[1746023325498,6.87262044,1765.7,1764.7,5.89]
[1746023326164,14.76258673,1766.0,1764.8,0.05664683]
[1746023326495,6.87262044,1765.8,1764.8,0.59466468]
[1746023327968,6.87262044,1765.8,1764.9,5.868]
[1746023327969,6.87262044,1765.6,1764.9,5.868]